Cogmind - Beta 10.2 *** ADVENTURER MODE // 2020.11.28 @ 20:01:08 // Halloween2020/ForbiddenLore Player: leiavoia Result: Destroyed by D-53 Grenadier with Mini Grenade Launcher Performance ------------- Evolutions (0) 0 Regions Visited (2) 400 Robots Destroyed (17) 85 Value Destroyed (422) 422 Prototype IDs (1) 20 Alien Tech Used (0) 0 Bonus (0) 0 TOTAL SCORE: 927 Bonus ------- None Cogmind --------- Core Integrity 0/250 Matter 190/300 Energy 54/125 System Corruption 0% Temperature Cool (0) Movement Core (750) Ox14 Location -10/Mines Parts ------- > --- POWER (1) -------- Light Ion Engine > --- PROPULSION (2) --- (None) > --- UTILITY (2) ------ High-capacity Storage Unit Signal Interpreter > --- WEAPON (2) ------- EMP Blaster EMP Blaster > --- INVENTORY (12) --- Ion Engine Heat Sink Small Storage Unit Improved EM Shotgun Makeshift Axe Peak State ------------ > --- POWER ------------ Light Nuclear Core > --- PROPULSION ------- Light Treads Light Treads > --- UTILITY ---------- High-capacity Storage Unit Signal Interpreter > --- WEAPON ----------- Improved EM Shotgun Improved EM Shotgun > --- INVENTORY -------- Ion Engine Light Ion Engine Wheel Wheel Heat Sink Small Storage Unit Autogun Autogun EMP Blaster EMP Blaster EMP Blaster Makeshift Axe [Rating: 15] Favorites ----------- Power Light Ion Engine Engine Light Ion Engine Power Core Light Nuclear Core Propulsion Light Treads Treads Light Treads Wheel Wheel Utility High-capacity Storage Unit Storage High-capacity Storage Unit Processor Signal Interpreter Weapon Improved EM Shotgun Energy Gun Improved EM Shotgun Ballistic Gun Light Assault Rifle Launcher EMP Blaster Slashing Weapon Makeshift Axe Build | -11 -10 -10 ------- Run | Scr Mat Min Slots Evolved . | . . . Power . | . . . Propulsion . | . . . Utility . | . . . Weapon . | . . . Parts Attached 26 | 7 6 13 Power 3 | 1 . 2 Engine 2 | 1 . 1 Core 1 | . . 1 Reactor . | . . . Propulsion 6 | 3 1 2 Treads 2 | 1 1 . Leg . | . . . Wheel 4 | 2 . 2 Hover . | . . . Flight . | . . . Utility 3 | 1 2 . Device . | . . . Storage 2 | 1 1 . Processor 1 | . 1 . Hackware . | . . . Protection . | . . . Artifact . | . . . Weapon 14 | 2 3 9 Energy Gun 5 | . 3 2 Energy Cannon . | . . . Ballistic Gun 4 | 2 . 2 Ballistic Cannon . | . . . Launcher 4 | . . 4 Special Weapon . | . . . Impact Weapon . | . . . Slashing Weapon 1 | . . 1 Piercing Weapon . | . . . Special Melee Weapon . | . . . Unidentified Prototypes 1 | . 1 . Parts Lost 9 | . . 9 Power 1 | . . 1 Propulsion 4 | . . 4 Utility . | . . . Weapon 4 | . . 4 Highest Loss Streak 9 | . . 9 Average Slot Usage (%) 97 | . 99 95 Engine 11 | . 14 10 Core 1 | . . 2 Treads 23 | . 22 24 Wheel 3 | . 5 . Storage 19 | . 26 14 Processor 7 | . . 14 Energy Gun 18 | . 11 23 Ballistic Gun 8 | . 16 1 Launcher 1 | . . 1 Naked Turns . | . . . Heaviest Build 45 | 9 45 43 Greatest Support 40 | 20 40 40 Greatest Overweight (x) 4 | . 4 3 Average Overweight (x) 1 | . 2 1 Largest Inventory Capacity 14 | 6 14 12 Average Capacity 11 | 5 13 12 Most Carried 12 | 4 12 12 Average Carried 8 | 2 6 11 Final Capacity 12 | 6 12 12 Final Carried 12 | 4 12 5 Class Distribution -------------------- 100% | Mutant Dominant Class ---------------- Mutant | -10/Materials Mutant | -10/Mines Resources | -11 -10 -10 ----------- Run | Scr Mat Min Matter Collected 378 | 282 63 33 Remotely . | . . . Salvage Created 665 | 124 275 266 Parts 41 | 4 20 17 Haulers Intercepted . | . . . Recyclers Shooed . | . . . Parts Field Recycled . | . . . Retrieved Matter . | . . . Parts Self-Destructed . | . . . Prevented . | . . . Kills | -11 -10 -10 ------- Run | Scr Mat Min Combat Hostiles Destroyed 12 | . 5 7 Guns 11 | . 5 6 AOE 1 | . . 1 Classes Destroyed 6 | 2 2 2 Builder 1 | . . 1 Tunneler 1 | 1 . . Recycler 1 | 1 . . Watcher 2 | . 2 . Swarmer 3 | . . 3 Grunt 9 | . 5 4 Best Kill Streak 4 | 2 4 3 Combat Bots Only 3 | . 3 3 Max Kills in Single Turn 2 | 1 1 2 Gunslinging 1 | . . 1 Exploded 1 | . . 1 Melee . | . . . Uniques/NPCs Destroyed . | . . . Combat | -11 -10 -10 -------- Run | Scr Mat Min Damage Taken 1357 | . 104 1253 Core 267 | . 24 243 Absorbed by Shields . | . . . Core Remaining (%) 100 | 100 . . Volleys Fired 37 | 6 15 16 Largest 2 | 2 2 2 Hottest 90 | 40 90 90 Shots Fired 70 | 12 30 28 Gun 62 | 12 30 20 Cannon . | . . . Launcher 8 | . . 8 Special . | . . . Kinetic 29 | 12 13 4 Thermal . | . . . Explosive . | . . . Electromagnetic 41 | . 17 24 Robot Hit Streak 24 | 11 24 21 Robot Miss Streak 2 | 1 1 2 Penetration Max . | . . . Secondary Targets 2 | . 1 1 Max Gunslinging Chain 1 | . 1 1 Shots Hit Robots 59 | 11 23 25 Core Hits 35 | 4 14 17 Critical Hits . | . . . Critical Kills . | . . . Critical Parts Destroyed . | . . . Melee Attacks . | . . . Impact . | . . . Slashing . | . . . Piercing . | . . . Sneak Attacks . | . . . Combat Hostiles . | . . . Follow-up Attacks . | . . . Damage Inflicted 1038 | 83 343 612 Guns 654 | 83 304 267 Cannons . | . . . Explosions 384 | . 39 345 Melee . | . . . Ramming . | . . . Kinetic 202 | 83 90 29 Thermal 149 | . 39 110 Explosive . | . . . Electromagnetic 687 | . 214 473 Impact . | . . . Slashing . | . . . Piercing . | . . . Highest Corruption . | . . . Average Corruption . | . . . Corruption Purged . | . . . Overload Shots . | . . . Overflow Damage 21 | . 19 2 Projectiles . | . . . Explosions 21 | . 19 2 Melee . | . . . Knockbacks . | . . . Impact . | . . . Kinetic . | . . . Secondary . | . . . Self-Inflicted Damage 16 | . . 16 Shots 1 | . . 1 Rammed . | . . . Targets Rammed . | . . . Kicked . | . . . Crushed . | . . . Highest Temperature 183 | . 96 183 Average Temperature 47 | . 38 54 Received Heat Transfer 108 | . 72 36 Siege Activations . | . . . Robots Corrupted . | . . . Combat Hostiles . | . . . Parts Fried . | . . . Impact Corruptions . | . . . Robots Melted . | . . . Combat Hostiles . | . . . Parts Melted . | . . . Heat Transferred 200 | . 50 150 Parts Sabotaged . | . . . Parts Stolen . | . . . Parts Stripped . | . . . Power Chain Reactions 4 | . 1 3 Missiles Intercepted . | . . . Alert | -11 -10 -10 ------- Run | Scr Mat Min Peak Influence 244 | 10 184 244 Initial 60 | . 5 60 Average 73 | 4 78 87 Maximum Alert Level 1 | . . 1 Low Security (%) 94 | 100 100 89 Level 1 5 | . . 10 Level 2 . | . . . Level 3 . | . . . Level 4 . | . . . Level 5 . | . . . High Security . | . . . Max Security . | . . . Squads Dispatched 2 | . 2 . Investigation 2 | . 2 . Extermination . | . . . Reinforcement . | . . . Assault . | . . . Garrison . | . . . Intercept . | . . . Construction Impeded . | . . . Haulers Reinforced . | . . . Stealth | -11 -10 -10 --------- Run | Scr Mat Min Distress Signals . | . . . Communications Jammed . | . . . Distress Signals . | . . . Times Spotted 25 | . 12 13 Peak Tracking Total 5 | . 4 5 Tactical Retreats . | . . . Traps | -11 -10 -10 ------- Run | Scr Mat Min Traps Triggered 2 | . 2 . Indirectly . | . . . Trap Hack Attempts . | . . . Triggered . | . . . Disarmed . | . . . Reprogrammed . | . . . Reused . | . . . Traps Extracted . | . . . Installed . | . . . Triggered . | . . . Machines | -11 -10 -10 ---------- Run | Scr Mat Min Machines Disabled 1 | . . 1 Max in Single Turn 1 | . . 1 Machines Sabotaged . | . . . Garrisons Compromised . | . . . Overloaded Fab Kills . | . . . Fab Network Shutdowns . | . . . Hacking | -11 -10 -10 --------- Run | Scr Mat Min Machines Accessed 4 | . 4 . Terminals 4 | . 4 . Fabricators . | . . . Repair Stations . | . . . Recycling Units . | . . . Scanalyzers . | . . . Garrison Access . | . . . Total Hacks 7 | . 7 . Successful 2 | . 2 . Failed 5 | . 5 . Catastrophic . | . . . Database Lockouts . | . . . Manual 4 | . 4 . Terminals 7 | . 7 . Fabricators . | . . . Repair Stations . | . . . Recycling Units . | . . . Scanalyzers . | . . . Garrison Access . | . . . Terminal Hacks 1 | . 1 . Record 1 | . 1 . Fabricator Hacks . | . . . Repair Station Hacks . | . . . Recycling Unit Hacks . | . . . Scanalyzer . | . . . Garrison Access Hacks . | . . . Unauthorized Hacks 1 | . 1 . Terminals 1 | . 1 . Botnet 1 | . 1 . Fabricators . | . . . Repair Stations . | . . . Recycling Units . | . . . Scanalyzers . | . . . Garrison Access . | . . . Data Cores Recovered . | . . . Used . | . . . Hacking Detections 2 | . 2 . Full Trace Events . | . . . Feedback Events . | . . . Feedback Blocked . | . . . Robot Schematics Acquired . | . . . Robots Built . | . . . Matter . | . . . Time . | . . . Total Robot Build Rating . | . . . Part Schematics Acquired . | . . . Parts Built . | . . . Matter . | . . . Time . | . . . Total Part Build Rating . | . . . Parts Repaired . | . . . Time . | . . . Parts Recycled . | . . . Recycled Matter . | . . . Retrieved Matter . | . . . Retrieved Components . | . . . Parts Scanalyzed . | . . . Part Schematics Acquired . | . . . Parts Damaged . | . . . Bothacking | -11 -10 -10 ------------ Run | Scr Mat Min Used RIF Installer . | . . . Robots Hacked . | . . . Non-combat . | . . . Combat . | . . . Robot Hacks Applied . | . . . Relay Couplers Released . | . . . Robots Rewired . | . . . Allies Hacked . | . . . Hacks Repelled . | . . . Allies | -11 -10 -10 -------- Run | Scr Mat Min Total Allies . | . . . Largest Group . | . . . Highest-Rated Group . | . . . Highest-Rated Ally . | . . . Total Orders . | . . . Ally Attacks . | . . . Total Damage . | . . . Kills . | . . . Allies Corrupted . | . . . Allies Melted . | . . . Intel | -11 -10 -10 ------- Run | Scr Mat Min Robot Analysis Total . | . . . Derelict Logs Recovered 1 | . . 1 Drone Launches . | . . . Drone Recoveries . | . . . Exploration | -11 -10 -10 ------------- Run | Scr Mat Min Turns Passed 935 | 116 378 441 Spaces Moved 511 | 83 224 204 Core 3 | 3 . . Treads 306 | 26 94 186 Legs . | . . . Wheels 202 | 54 130 18 Hover . | . . . Flight . | . . . Fastest Speed 50 | 50 80 110 Average Speed 148 | 103 141 173 Slowest Speed 180 | 160 180 180 Overloaded Moves . | . . . Propulsion Burnouts . | . . . Robots Hopped . | . . . Cave-ins Triggered . | . . . Exploration Rate (%) 29 | 5 41 41 Regions Visited 2 Branch Regions 1 Pre-discovered Areas 1 | . . 1 Known Exits Taken 1 | . 1 . Unknown Exits Taken 1 | 1 . . Scrap Searched . | . . . Spaces Dug . | . . . Terrain Destroyed 12 | . 1 11 Melee . | . . . Projectile . | . . . AOE 12 | . 1 11 Terrain Rammed . | . . . Walls Destroyed . | . . . Machines Disabled . | . . . Actions | -11 -10 -10 --------- Run | Scr Mat Min Total 620 | 100 258 262 Wait 28 | . 2 26 Move 509 | 82 223 204 Hop . | . . . Pick Up 13 | 4 8 1 Fast Attach 10 | 6 3 1 Attach 8 | 1 . 7 Detach 3 | 1 2 . Swap 8 | . 3 5 Drop 4 | . 2 2 Fire 37 | 6 15 16 Melee . | . . . Ram . | . . . Kick . | . . . Crush . | . . . Escape Stasis . | . . . Rewire . | . . . Trap . | . . . Miscellaneous . | . . . Route ------- -11/Scrapyard -10/Materials -10/Mines History --------- Turn | Location | Event 6 | -11/Scrapyard | Discovered new exit (range 16) 117 | -11/Scrapyard | Entered Materials 314 | -10/Materials | Build established: Mutant 395 | -10/Materials | Discovered new exit (range 16) 475 | -10/Materials | Identified exit to Mines 495 | -10/Materials | Entered Mines 777 | -10/Mines | A weapon hastily lodged in a ceiling crevice suddenly fell to the ground 798 | -10/Mines | Learned location of Recycling (-9) 824 | -10/Mines | Assembled infested the area 829 | -10/Mines | Assisted by a Guerilla fighting off Assembled 897 | -10/Mines | Core integrity fell below 50% 912 | -10/Mines | Core integrity fell below 20% 936 | -10/Mines | Destroyed by D-53 Grenadier with Mini Grenade Launcher Last Messages --------------- 00887_ D-53 Grenadier IFF system glitched. 00888_ The unstable cave ceiling collapses. 00888_ Acquired 13 matter. 00889_ The unstable cave ceiling collapses. 00896_ Core Extractor disabled. 00898_ The unstable cave ceiling collapses. 00902_ Wheel destroyed. 00902_ Imp. EM Shotgun destroyed. 00906_ D-53 Grenadier IFF system glitched. 00907_ The unstable cave ceiling collapses. 00907_ EMP Blaster destroyed. 00908_ The unstable cave ceiling collapses. 00915_ D-53 Grenadier IFF system glitched. 00915_ D-53 Grenadier destroyed. 00916_ D-53 Grenadier misfires. 00917_ The unstable cave ceiling collapses. 00924_ Destroyed Shock Absorption System. 00925_ The unstable cave ceiling collapses. 00931_ Autogun destroyed. 00932_ The unstable cave ceiling collapses. Map ----- +----------------------------------------------------+ | ????????????????????????????????????????????????? | | ????????????????????????????????????????????????? | | ????????????????????????????????????????????????? | | ????????????????????????????????????????????????? | | ????????????????????????????????????????????????? | | ????????????????????????????????????????????????? | | ????????????????????????????????????????????????? | | ????????????????????????????????????????????????? | | ????????????????????????????????????????????????? | | ????????????????????????????????????????????????? | | ????????????????????????????????????????????????? | | ????????????????????????????????????????????????? | | ????????????????????????????????????????????????? | | ????????????????????????????????????????????????? | | ????????????????????????????????????????????????? | | ????????????????????????????????????????????????? | | ????????????????????????????????????????????????? | | ??????????????????##########????????????????????? | | ??????????????????# # #????????????????????# | | ?????????????????## " #??????????????????### | | ?????????????????# " #?????????????????## | | ????????????????## ######??????????? # | | ????????????????# # #####?????# | | ???????????? # #????## | | ???????????????#a # a #???# ## | | ????????????????# # @ ## # #### | | ????????????????## d ##??? | | ?????????????????## # = #??? | | ??????????????????### % #??? | | ????????????????????## # ### ##??? | | ?????????????????????###### # ##???? | | ???????????????????????????### # ### #?#### | | ???????????????????????????# ## ##?# | | ???????????????????????????# # # ###??# ## | | ???????????????????????????# ## ####### #? | | ???????????????????????????# #? | | ???????????????????????????# = #########? | | ???????????????????????????# ###????????? | | ???????????????????????????## # #??????????? | | ????????????????????????????## ##????????????? | | ????????????????????????????? # #????????????? | | ???????????????????????????? ## #???????????? | | ???????????????????????????# #???????????? | | ???????????????????????????# !%= #???????????? | | ??????????????????????????? %| #????????????? | | ???????????????????????????# # ????????????? | | ???????????????????????????# # ????????????? | | ???????????????????????????? #????????????? | | ?????????????????????????????### ##????????????? | | ???????????????????????????????#"%#?????????????? | +----------------------------------------------------+ Best States ------------- Heat Dissipation 25 Energy Generation 14 Energy Capacity 160 Matter Stores 300 Matter Capacity 300 Sight Range 16 Terrain Scan Density 10 Resistance: KI 20 Resistance: TH 20 Resistance: EX 20 Resistance: EM 20 Resistance: I 20 Resistance: S 20 Resistance: P 20 Evasion (%) 44 Recoil Reduction 2 Offensive Hacking 10 Item Schematics ----------------- None Robot Schematics ------------------ None Fabricated ------------ Nothing Alien Tech Used ----------------- None Achievements -------------- None Challenges ------------ None Game ------ Seed AlphaCoolingShotgun Manual? 0 Play Time 00:16:10 Cumulative 111.6 hours Start 2020.11.28 @ 19:35:51 End 2020.11.28 @ 20:01:08 Sessions 1 Manual Loads 0 Difficulty Adventurer Special Mode Halloween2020/ForbiddenLore Game No. 16 Rogue 0 Adventurer 16 Explorer 0 Win Type - Total 2 Types 2/0/0/0/0/0/0/0/0 Lore% 25 Gallery% 51 Achievement% 37 Wizard Run 0 Options --------- ASCII 0 Keyboard 0 Movement Arrows Keybinds 0 Fullscreen 1 Font 20/Terminus Map View 66x50 Tactical HUD 1 Map Filters NONE Filters NONE Steam 1 RUN: 86201b72-ab06-498b-8807-b66d00bf8185